[Event "Early-Titled-Tuesday-Blitz-March-26-2024"]
[Site "Chess.com"]
[Date "2024.03.26"]
[Round "4"]
[White "NovoselovRoman"]
[Black "lukazz029"]
[Result "1-0"]
[WhiteElo "2556"]
[BlackElo "2011"]
[TimeControl "180+1"]
[EndTime "8:38:35 PDT"]
[Termination "NovoselovRoman won by resignation"]

1. d4 {[%clk 0:03:00.9]} 1... Nf6 {[%clk 0:02:58.2]} 2. Nc3 {[%clk 0:03:00.6]}
2... d5 {[%clk 0:02:57.5]} 3. Bf4 {[%clk 0:03:00.7]} 3... Bf5 {[%clk 0:02:57]}
4. e3 {[%clk 0:03:00.6]} 4... e6 {[%clk 0:02:52.9]} 5. Bd3 {[%clk 0:02:57]} 5...
Bxd3 {[%clk 0:02:52.3]} 6. Qxd3 {[%clk 0:02:57.9]} 6... a6 {[%clk 0:02:45.1]} 7.
Nf3 {[%clk 0:02:48.4]} 7... c5 {[%clk 0:02:44.1]} 8. O-O-O {[%clk 0:02:23.5]}
8... Nc6 {[%clk 0:02:35.4]} 9. e4 {[%clk 0:02:08.7]} 9... cxd4 {[%clk
0:02:23.2]} 10. Nxd4 {[%clk 0:02:00.1]} 10... dxe4 {[%clk 0:01:48.7]} 11. Nxe4
{[%clk 0:01:55.3]} 11... Qxd4 {[%clk 0:01:48.4]} 12. Nxf6+ {[%clk 0:01:34.2]}
12... gxf6 {[%clk 0:01:37.1]} 13. Qxd4 {[%clk 0:01:33.5]} 13... Nxd4 {[%clk
0:01:36.7]} 14. Rxd4 {[%clk 0:01:34.4]} 14... Bc5 {[%clk 0:01:30.5]} 15. Rd2
{[%clk 0:01:28.1]} 15... Rd8 {[%clk 0:01:21.2]} 16. Re2 {[%clk 0:01:17.3]} 16...
Rd5 {[%clk 0:01:15.8]} 17. c3 {[%clk 0:01:15.1]} 17... Ke7 {[%clk 0:01:13.5]}
18. Rd1 {[%clk 0:01:05.1]} 18... Rhd8 {[%clk 0:01:12.5]} 19. Rxd5 {[%clk
0:01:04.8]} 19... Rxd5 {[%clk 0:01:13.4]} 20. Kc2 {[%clk 0:01:04.9]} 20... Ba7
{[%clk 0:00:58.7]} 21. a4 {[%clk 0:01:03.7]} 21... Rf5 {[%clk 0:00:52.7]} 22.
Bg3 {[%clk 0:01:01.9]} 22... Rd5 {[%clk 0:00:53.1]} 23. b4 {[%clk 0:00:57.4]}
23... Rd7 {[%clk 0:00:45.4]} 24. f3 {[%clk 0:00:53.9]} 24... Rd5 {[%clk
0:00:44.2]} 25. Bf4 {[%clk 0:00:52.6]} 25... Kd7 {[%clk 0:00:33.4]} 26. Re4
{[%clk 0:00:51.5]} 26... f5 {[%clk 0:00:29.5]} 27. Rc4 {[%clk 0:00:50.8]} 27...
Bb6 {[%clk 0:00:27.9]} 28. a5 {[%clk 0:00:48.3]} 28... Bd8 {[%clk 0:00:28.4]}
29. Be3 {[%clk 0:00:47.1]} 29... Be7 {[%clk 0:00:26.8]} 30. Bb6 {[%clk
0:00:45.3]} 30... Bd6 {[%clk 0:00:26.9]} 31. Rh4 {[%clk 0:00:44.9]} 31... Re5
{[%clk 0:00:25.7]} 32. Kd3 {[%clk 0:00:39.3]} 32... Re1 {[%clk 0:00:23.2]} 33.
Rxh7 {[%clk 0:00:38.1]} 33... Rd1+ {[%clk 0:00:18.4]} 34. Ke2 {[%clk 0:00:37]}
34... Rb1 {[%clk 0:00:17.4]} 35. Rxf7+ {[%clk 0:00:36.2]} 35... Kc6 {[%clk
0:00:16.5]} 36. Kd3 {[%clk 0:00:28.5]} 36... Rb2 {[%clk 0:00:16.1]} 37. Rg7
{[%clk 0:00:25.7]} 37... Rb3 {[%clk 0:00:13.7]} 38. Kc4 {[%clk 0:00:23.6]} 38...
Rb2 {[%clk 0:00:12.1]} 39. h4 {[%clk 0:00:23.9]} 39... Be5 {[%clk 0:00:10.6]}
40. Rg6 {[%clk 0:00:22.3]} 40... Kd7 {[%clk 0:00:09.3]} 41. Bd4 {[%clk
0:00:21.9]} 41... Bd6 {[%clk 0:00:09.7]} 42. h5 {[%clk 0:00:21.7]} 42... Rb1
{[%clk 0:00:09.8]} 43. h6 {[%clk 0:00:21.2]} 43... Rh1 {[%clk 0:00:10.4]} 44.
Rg7+ {[%clk 0:00:21.6]} 44... Kc6 {[%clk 0:00:10.2]} 45. h7 {[%clk 0:00:22]}
45... e5 {[%clk 0:00:10.7]} 46. Bc5 {[%clk 0:00:21.9]} 46... Bxc5 {[%clk
0:00:09.7]} 47. bxc5 {[%clk 0:00:22.4]} 47... e4 {[%clk 0:00:10.2]} 48. fxe4
{[%clk 0:00:20.7]} 48... fxe4 {[%clk 0:00:11.1]} 49. Kd4 {[%clk 0:00:21.6]}
49... Rh4 {[%clk 0:00:10.1]} 50. g4 {[%clk 0:00:22]} 50... e3 {[%clk 0:00:07.5]}
51. Kxe3 {[%clk 0:00:22]} 51... Kxc5 {[%clk 0:00:08]} 52. g5 {[%clk 0:00:21.8]}
52... Kc6 {[%clk 0:00:08.1]} 53. g6 {[%clk 0:00:22.3]} 53... Kb5 {[%clk
0:00:08]} 54. Rg8 {[%clk 0:00:22.4]} 54... Kxa5 {[%clk 0:00:08.8]} 55. h8=Q
{[%clk 0:00:22.6]} 1-0

[Event "Early-Titled-Tuesday-Blitz-March-26-2024"]
[Site "Chess.com"]
[Date "2024.03.26"]
[Round "4"]
[White "AwareIdea"]
[Black "reevecanada"]
[Result "0-1"]
[WhiteElo "2503"]
[BlackElo "2676"]
[TimeControl "180+1"]
[EndTime "8:38:37 PDT"]
[Termination "reevecanada won on time"]

1. d4 {[%clk 0:03:00.9]} 1... Nf6 {[%clk 0:02:58]} 2. Bf4 {[%clk 0:02:55.6]}
2... d6 {[%clk 0:02:56.6]} 3. e3 {[%clk 0:02:56.1]} 3... Nbd7 {[%clk 0:02:56.1]}
4. Nc3 {[%clk 0:02:56.7]} 4... g6 {[%clk 0:02:56.1]} 5. h4 {[%clk 0:02:55.8]}
5... Bg7 {[%clk 0:02:56.2]} 6. Nf3 {[%clk 0:02:54.3]} 6... O-O {[%clk 0:02:55]}
7. Bc4 {[%clk 0:02:54]} 7... b6 {[%clk 0:02:54]} 8. Nd5 {[%clk 0:02:52]} 8...
Bb7 {[%clk 0:02:53.8]} 9. Nxf6+ {[%clk 0:02:51.9]} 9... Nxf6 {[%clk 0:02:54.7]}
10. Bg5 {[%clk 0:02:50.7]} 10... h6 {[%clk 0:02:53.1]} 11. Bxf6 {[%clk
0:02:50.6]} 11... Bxf6 {[%clk 0:02:53.8]} 12. c3 {[%clk 0:02:30.8]} 12... Kg7
{[%clk 0:02:50.8]} 13. Qe2 {[%clk 0:02:29.4]} 13... c5 {[%clk 0:02:50.3]} 14.
O-O-O {[%clk 0:02:25.6]} 14... Qc7 {[%clk 0:02:47.7]} 15. Ba6 {[%clk 0:02:14.6]}
15... Be4 {[%clk 0:02:45.2]} 16. Bd3 {[%clk 0:02:13.5]} 16... Bd5 {[%clk
0:02:41.6]} 17. Kb1 {[%clk 0:02:08.5]} 17... cxd4 {[%clk 0:02:34]} 18. exd4
{[%clk 0:02:06.4]} 18... Rfc8 {[%clk 0:02:30.2]} 19. Be4 {[%clk 0:02:03.1]}
19... Bc4 {[%clk 0:02:27.6]} 20. Qe3 {[%clk 0:01:57.6]} 20... d5 {[%clk
0:02:22.5]} 21. Bc2 {[%clk 0:01:57.1]} 21... a5 {[%clk 0:02:20.5]} 22. h5 {[%clk
0:01:47.7]} 22... g5 {[%clk 0:02:19.4]} 23. Ne5 {[%clk 0:01:47.7]} 23... a4
{[%clk 0:02:18.7]} 24. f4 {[%clk 0:01:45.3]} 24... b5 {[%clk 0:01:44.2]} 25. a3
{[%clk 0:01:37.6]} 25... Bb3 {[%clk 0:01:26.1]} 26. g3 {[%clk 0:01:17.9]} 26...
Qd6 {[%clk 0:01:14]} 27. Nd3 {[%clk 0:01:09.3]} 27... Rc4 {[%clk 0:00:54.6]} 28.
fxg5 {[%clk 0:00:47]} 28... Bxg5 {[%clk 0:00:45]} 29. Qf3 {[%clk 0:00:45.2]}
29... Rxc3 {[%clk 0:00:38.8]} 30. bxc3 {[%clk 0:00:29]} 30... Qxa3 {[%clk
0:00:37.7]} 31. Nb4 {[%clk 0:00:28.9]} 31... Rc8 {[%clk 0:00:26.9]} 32. Rd3
{[%clk 0:00:11.5]} 32... Bxc2+ {[%clk 0:00:20.3]} 33. Nxc2 {[%clk 0:00:12.4]}
33... Qb3+ {[%clk 0:00:20]} 34. Ka1 {[%clk 0:00:12.8]} 34... Qxc2 {[%clk
0:00:20.6]} 35. Rb1 {[%clk 0:00:11.5]} 35... a3 {[%clk 0:00:19.4]} 36. Qd1
{[%clk 0:00:10.5]} 36... Qf2 {[%clk 0:00:18.5]} 37. Rxb5 {[%clk 0:00:08.5]}
37... Bf6 {[%clk 0:00:17.7]} 38. Rb3 {[%clk 0:00:07.8]} 38... Kf8 {[%clk
0:00:16.9]} 39. Rxa3 {[%clk 0:00:08]} 39... Rb8 {[%clk 0:00:16.8]} 40. Ra2
{[%clk 0:00:08.3]} 40... Qf5 {[%clk 0:00:15]} 41. Rb2 {[%clk 0:00:08]} 41...
Ra8+ {[%clk 0:00:14.6]} 42. Kb1 {[%clk 0:00:08.3]} 42... Rc8 {[%clk 0:00:13.3]}
43. Ka1 {[%clk 0:00:07.5]} 43... Ra8+ {[%clk 0:00:12]} 44. Kb1 {[%clk
0:00:06.9]} 44... Rc8 {[%clk 0:00:12.3]} 45. Kc2 {[%clk 0:00:07.2]} 45... Bxd4
{[%clk 0:00:11.1]} 46. Rb5 {[%clk 0:00:05.7]} 46... Rxc3+ {[%clk 0:00:10.8]} 47.
Kb1 {[%clk 0:00:05.2]} 47... Rxd3 {[%clk 0:00:11.1]} 0-1

[Event "Early-Titled-Tuesday-Blitz-March-26-2024"]
[Site "Chess.com"]
[Date "2024.03.26"]
[Round "4"]
[White "BallottiLuca"]
[Black "JosefineHeinemann"]
[Result "0-1"]
[WhiteElo "2360"]
[BlackElo "2515"]
[TimeControl "180+1"]
[EndTime "8:38:37 PDT"]
[Termination "JosefineHeinemann won on time"]

1. d4 {[%clk 0:03:00.9]} 1... Nf6 {[%clk 0:02:59]} 2. c4 {[%clk 0:03:01.5]} 2...
e6 {[%clk 0:02:57.8]} 3. Nf3 {[%clk 0:03:00.3]} 3... d5 {[%clk 0:02:55]} 4. Nc3
{[%clk 0:02:58.4]} 4... c5 {[%clk 0:02:51.4]} 5. cxd5 {[%clk 0:02:55.5]} 5...
Nxd5 {[%clk 0:02:49.3]} 6. e4 {[%clk 0:02:54.5]} 6... Nxc3 {[%clk 0:02:45.8]} 7.
bxc3 {[%clk 0:02:55.4]} 7... cxd4 {[%clk 0:02:46.5]} 8. cxd4 {[%clk 0:02:54.7]}
8... Bb4+ {[%clk 0:02:46.4]} 9. Bd2 {[%clk 0:02:54.1]} 9... Bxd2+ {[%clk
0:02:45.8]} 10. Qxd2 {[%clk 0:02:54.4]} 10... O-O {[%clk 0:02:46.4]} 11. Bc4
{[%clk 0:02:53]} 11... Nd7 {[%clk 0:02:46.2]} 12. O-O {[%clk 0:02:51.9]} 12...
b6 {[%clk 0:02:46.4]} 13. Rfe1 {[%clk 0:02:49.7]} 13... Bb7 {[%clk 0:02:44.5]}
14. Rad1 {[%clk 0:02:49.4]} 14... Rc8 {[%clk 0:02:43.4]} 15. Bb3 {[%clk
0:02:48.7]} 15... Re8 {[%clk 0:02:40.3]} 16. h3 {[%clk 0:02:47.6]} 16... Qc7
{[%clk 0:02:39]} 17. Qg5 {[%clk 0:02:25.2]} 17... h6 {[%clk 0:02:38.9]} 18. Qh4
{[%clk 0:02:13]} 18... Nf6 {[%clk 0:02:29.3]} 19. Ne5 {[%clk 0:01:55.7]} 19...
b5 {[%clk 0:02:09.2]} 20. f3 {[%clk 0:01:49.8]} 20... a5 {[%clk 0:01:58.9]} 21.
a4 {[%clk 0:01:40.9]} 21... b4 {[%clk 0:01:55.9]} 22. Nc4 {[%clk 0:01:31.9]}
22... Ba6 {[%clk 0:01:40.3]} 23. Rc1 {[%clk 0:01:30.7]} 23... Bxc4 {[%clk
0:01:38.2]} 24. Rxc4 {[%clk 0:01:27.7]} 24... Qd7 {[%clk 0:01:30]} 25. Rec1
{[%clk 0:01:19.8]} 25... Rxc4 {[%clk 0:01:29.1]} 26. Rxc4 {[%clk 0:01:20.7]}
26... Rc8 {[%clk 0:01:27.9]} 27. Rxc8+ {[%clk 0:01:12.9]} 27... Qxc8 {[%clk
0:01:27.7]} 28. Qe1 {[%clk 0:01:11.7]} 28... Kf8 {[%clk 0:01:19.6]} 29. Kh2
{[%clk 0:01:06.4]} 29... Qc7+ {[%clk 0:01:19.2]} 30. e5 {[%clk 0:00:55.5]} 30...
Ne8 {[%clk 0:00:40.6]} 31. d5 {[%clk 0:00:44.7]} 31... exd5 {[%clk 0:00:39.8]}
32. Bxd5 {[%clk 0:00:45.6]} 32... Qc5 {[%clk 0:00:34.4]} 33. Qe4 {[%clk
0:00:44]} 33... Nc7 {[%clk 0:00:33.9]} 34. Bc4 {[%clk 0:00:40.1]} 34... Ke7
{[%clk 0:00:29.6]} 35. f4 {[%clk 0:00:39.6]} 35... g6 {[%clk 0:00:29.4]} 36. f5
{[%clk 0:00:20]} 36... gxf5 {[%clk 0:00:28.9]} 37. Qh4+ {[%clk 0:00:17.7]} 37...
Ke8 {[%clk 0:00:26.7]} 38. Qxh6 {[%clk 0:00:07.6]} 38... Qxc4 {[%clk 0:00:20.5]}
39. Qh8+ {[%clk 0:00:08.1]} 39... Kd7 {[%clk 0:00:20.3]} 40. Qf6 {[%clk
0:00:05]} 40... Qe6 {[%clk 0:00:20.1]} 41. Qg7 {[%clk 0:00:05.6]} 41... Ne8
{[%clk 0:00:19.8]} 42. Qf8 {[%clk 0:00:05.4]} 42... Qxe5+ {[%clk 0:00:19.7]} 43.
Kh1 {[%clk 0:00:05.3]} 43... Qe7 {[%clk 0:00:20.4]} 44. Qh6 {[%clk 0:00:04.9]}
44... Nf6 {[%clk 0:00:20.4]} 45. Qd2+ {[%clk 0:00:04.9]} 45... Qd6 {[%clk
0:00:20.4]} 46. Qe2 {[%clk 0:00:04.3]} 46... Ne4 {[%clk 0:00:20.3]} 47. Qb5+
{[%clk 0:00:04.4]} 47... Ke7 {[%clk 0:00:19.4]} 48. h4 {[%clk 0:00:02.2]} 48...
Qd1+ {[%clk 0:00:17.6]} 49. Kh2 {[%clk 0:00:02.5]} 49... Qd6+ {[%clk 0:00:18.2]}
50. Kh1 {[%clk 0:00:02]} 50... Kf6 {[%clk 0:00:18.8]} 0-1

[Event "Early-Titled-Tuesday-Blitz-March-26-2024"]
[Site "Chess.com"]
[Date "2024.03.26"]
[Round "4"]
[White "Vahe_Danielyan"]
[Black "vlad10898"]
[Result "0-1"]
[WhiteElo "2642"]
[BlackElo "2891"]
[TimeControl "180+1"]
[EndTime "8:38:40 PDT"]
[Termination "vlad10898 won on time"]

1. e4 {[%clk 0:03:00.9]} 1... c5 {[%clk 0:02:51.3]} 2. Nc3 {[%clk 0:02:59.4]}
2... a6 {[%clk 0:02:47.1]} 3. g3 {[%clk 0:02:58.7]} 3... b5 {[%clk 0:02:47.2]}
4. Bg2 {[%clk 0:02:59]} 4... Bb7 {[%clk 0:02:47.9]} 5. Nge2 {[%clk 0:02:59.5]}
5... e6 {[%clk 0:02:48.3]} 6. d4 {[%clk 0:03:00]} 6... cxd4 {[%clk 0:02:40.6]}
7. Nxd4 {[%clk 0:03:00.9]} 7... b4 {[%clk 0:02:40.3]} 8. Na4 {[%clk 0:03:00.8]}
8... Nf6 {[%clk 0:02:40.9]} 9. Qe2 {[%clk 0:03:01.4]} 9... Nc6 {[%clk
0:02:35.1]} 10. Be3 {[%clk 0:02:59.8]} 10... Be7 {[%clk 0:02:04.6]} 11. O-O
{[%clk 0:02:59.4]} 11... O-O {[%clk 0:02:01.3]} 12. Rfd1 {[%clk 0:02:59.2]}
12... Qc7 {[%clk 0:01:38]} 13. Rac1 {[%clk 0:02:54]} 13... Ne5 {[%clk
0:01:21.1]} 14. c3 {[%clk 0:02:38]} 14... Qa5 {[%clk 0:01:10.9]} 15. b3 {[%clk
0:02:31.3]} 15... bxc3 {[%clk 0:01:10.7]} 16. Bf4 {[%clk 0:02:27.9]} 16... Rac8
{[%clk 0:01:07.6]} 17. Nxc3 {[%clk 0:02:14.4]} 17... Ba3 {[%clk 0:00:50.5]} 18.
Rc2 {[%clk 0:02:06.7]} 18... d6 {[%clk 0:00:50.6]} 19. Bd2 {[%clk 0:01:59.1]}
19... Bb4 {[%clk 0:00:49.5]} 20. Rdc1 {[%clk 0:01:48.3]} 20... Rc5 {[%clk
0:00:39.9]} 21. Na4 {[%clk 0:01:39.4]} 21... Rxc2 {[%clk 0:00:38.6]} 22. Rxc2
{[%clk 0:01:37.6]} 22... Bxd2 {[%clk 0:00:37.2]} 23. Rxd2 {[%clk 0:01:30.3]}
23... Bxe4 {[%clk 0:00:36.7]} 24. f4 {[%clk 0:01:25.7]} 24... Bxg2 {[%clk
0:00:22.6]} 25. Kxg2 {[%clk 0:01:26.6]} 25... Ned7 {[%clk 0:00:20]} 26. Nc6
{[%clk 0:01:23.8]} 26... Qc7 {[%clk 0:00:20]} 27. Qxa6 {[%clk 0:01:22.1]} 27...
Ne4 {[%clk 0:00:20.1]} 28. Rc2 {[%clk 0:01:15]} 28... Ndc5 {[%clk 0:00:20.3]}
29. Nxc5 {[%clk 0:01:10.1]} 29... Nxc5 {[%clk 0:00:21.2]} 30. Qb5 {[%clk
0:01:04.3]} 30... Qd7 {[%clk 0:00:16.9]} 31. b4 {[%clk 0:00:52.8]} 31... Ne4
{[%clk 0:00:13.9]} 32. a4 {[%clk 0:00:49.3]} 32... e5 {[%clk 0:00:12.3]} 33. Qd5
{[%clk 0:00:44]} 33... Nf6 {[%clk 0:00:11.5]} 34. Qc4 {[%clk 0:00:34.1]} 34...
d5 {[%clk 0:00:11]} 35. Qc5 {[%clk 0:00:32.5]} 35... exf4 {[%clk 0:00:08.9]} 36.
Ne7+ {[%clk 0:00:19.7]} 36... Kh8 {[%clk 0:00:09.2]} 37. Ng6+ {[%clk 0:00:14]}
37... hxg6 {[%clk 0:00:09.6]} 38. Qxf8+ {[%clk 0:00:14.9]} 38... Kh7 {[%clk
0:00:10.3]} 39. Rc8 {[%clk 0:00:14.5]} 39... g5 {[%clk 0:00:08.3]} 40. Qh8+
{[%clk 0:00:10.1]} 40... Kg6 {[%clk 0:00:08.3]} 41. Qh3 {[%clk 0:00:03.4]} 41...
g4 {[%clk 0:00:07.6]} 42. Qh8 {[%clk 0:00:03.5]} 42... f3+ {[%clk 0:00:06.3]}
43. Kf2 {[%clk 0:00:04]} 43... Ne4+ {[%clk 0:00:06.1]} 44. Ke3 {[%clk
0:00:03.1]} 44... Qa7+ {[%clk 0:00:05.7]} 45. Kf4 {[%clk 0:00:02.4]} 45... f2
{[%clk 0:00:05.3]} 46. Kxg4 {[%clk 0:00:01.8]} 46... Qd7+ {[%clk 0:00:03.7]} 0-1

[Event "Early-Titled-Tuesday-Blitz-March-26-2024"]
[Site "Chess.com"]
[Date "2024.03.26"]
[Round "4"]
[White "ChristianArca"]
[Black "FairChess_on_YouTube"]
[Result "0-1"]
[WhiteElo "2671"]
[BlackElo "3124"]
[TimeControl "180+1"]
[EndTime "8:38:40 PDT"]
[Termination "FairChess_on_YouTube won by resignation"]

1. d4 {[%clk 0:02:59.4]} 1... Nf6 {[%clk 0:02:59.9]} 2. Nf3 {[%clk 0:02:56.8]}
2... e6 {[%clk 0:03:00.1]} 3. g3 {[%clk 0:02:54.7]} 3... b5 {[%clk 0:02:59.7]}
4. Bg2 {[%clk 0:02:55.6]} 4... Bb7 {[%clk 0:02:59.8]} 5. O-O {[%clk 0:02:55.9]}
5... c5 {[%clk 0:03:00.1]} 6. a4 {[%clk 0:02:51]} 6... b4 {[%clk 0:03:00.2]} 7.
c4 {[%clk 0:02:51]} 7... bxc3 {[%clk 0:02:59.2]} 8. Nxc3 {[%clk 0:02:49.2]} 8...
Na6 {[%clk 0:02:54.7]} 9. Nb5 {[%clk 0:02:42.2]} 9... Be7 {[%clk 0:02:45.6]} 10.
dxc5 {[%clk 0:02:39.8]} 10... O-O {[%clk 0:02:34.2]} 11. Nd6 {[%clk 0:02:36.8]}
11... Bd5 {[%clk 0:02:29.9]} 12. Be3 {[%clk 0:02:27.2]} 12... Qb8 {[%clk
0:02:29.5]} 13. Rc1 {[%clk 0:01:50.5]} 13... Qxb2 {[%clk 0:01:49.6]} 14. Bd4
{[%clk 0:01:42.8]} 14... Qb8 {[%clk 0:01:45.1]} 15. Rb1 {[%clk 0:01:33.9]} 15...
Qc7 {[%clk 0:01:43]} 16. Rc1 {[%clk 0:00:55.6]} 16... Nb4 {[%clk 0:01:17.7]} 17.
Rb1 {[%clk 0:00:22.8]} 17... a5 {[%clk 0:01:15.6]} 18. Re1 {[%clk 0:00:20.6]}
18... Ne4 {[%clk 0:01:06.4]} 19. Nxe4 {[%clk 0:00:16]} 19... Bxe4 {[%clk
0:01:06.5]} 20. Rc1 {[%clk 0:00:16.3]} 20... Qb7 {[%clk 0:01:02]} 21. Qd2 {[%clk
0:00:14.3]} 21... Rfc8 {[%clk 0:00:58.2]} 22. Red1 {[%clk 0:00:14.2]} 22... Bf8
{[%clk 0:00:55.5]} 23. h4 {[%clk 0:00:14.6]} 23... h6 {[%clk 0:00:55.4]} 24. h5
{[%clk 0:00:14.9]} 24... Bc6 {[%clk 0:00:51.6]} 25. Ra1 {[%clk 0:00:14.4]} 25...
Rab8 {[%clk 0:00:46.9]} 26. Qf4 {[%clk 0:00:14.7]} 26... Nd5 {[%clk 0:00:43.5]}
27. Qg4 {[%clk 0:00:14]} 27... Qb4 {[%clk 0:00:34.7]} 28. Rdb1 {[%clk
0:00:09.8]} 28... Qxb1+ {[%clk 0:00:33]} 29. Rxb1 {[%clk 0:00:10.7]} 29... Rxb1+
{[%clk 0:00:33.1]} 30. Kh2 {[%clk 0:00:11.6]} 30... Rb4 {[%clk 0:00:32.9]} 31.
e4 {[%clk 0:00:12.2]} 31... Nc7 {[%clk 0:00:24.2]} 32. Qf4 {[%clk 0:00:12.4]}
32... Rxa4 {[%clk 0:00:21.5]} 33. g4 {[%clk 0:00:12.4]} 33... Nb5 {[%clk
0:00:21.3]} 34. Be5 {[%clk 0:00:12.1]} 34... Rxe4 {[%clk 0:00:21.3]} 35. Qg3
{[%clk 0:00:12.5]} 35... f6 {[%clk 0:00:20.5]} 36. Bb2 {[%clk 0:00:12.1]} 36...
Rb4 {[%clk 0:00:18.7]} 37. Bc1 {[%clk 0:00:10.7]} 37... Bxc5 {[%clk 0:00:15.1]}
38. g5 {[%clk 0:00:11.2]} 38... Bd6 {[%clk 0:00:14.8]} 39. Ne5 {[%clk
0:00:08.8]} 39... Bxe5 {[%clk 0:00:14.5]} 40. f4 {[%clk 0:00:09.3]} 40... fxg5
{[%clk 0:00:15]} 41. fxe5 {[%clk 0:00:08.4]} 41... Bxg2 {[%clk 0:00:14.8]} 42.
Bxg5 {[%clk 0:00:08.6]} 42... Rc2 {[%clk 0:00:11]} 43. Bxh6 {[%clk 0:00:08.1]}
43... Be4+ {[%clk 0:00:10.6]} 44. Kh3 {[%clk 0:00:08.1]} 44... Bf5+ {[%clk
0:00:10.3]} 0-1

[Event "Early-Titled-Tuesday-Blitz-March-26-2024"]
[Site "Chess.com"]
[Date "2024.03.26"]
[Round "4"]
[White "KarstenHansch"]
[Black "Aleksandar-Topalov"]
[Result "1/2-1/2"]
[WhiteElo "2494"]
[BlackElo "2342"]
[TimeControl "180+1"]
[EndTime "8:38:40 PDT"]
[Termination "Game drawn by repetition"]

1. e4 {[%clk 0:03:00.9]} 1... e6 {[%clk 0:02:58.5]} 2. d4 {[%clk 0:03:00.3]}
2... d5 {[%clk 0:02:58.3]} 3. e5 {[%clk 0:03:01]} 3... Ne7 {[%clk 0:02:57.8]} 4.
Nf3 {[%clk 0:02:59.4]} 4... Qd7 {[%clk 0:02:57.6]} 5. Bd3 {[%clk 0:02:54.3]}
5... b6 {[%clk 0:02:57.8]} 6. Qe2 {[%clk 0:02:51.9]} 6... a5 {[%clk 0:02:57.1]}
7. Nc3 {[%clk 0:02:48.5]} 7... Ba6 {[%clk 0:02:56.9]} 8. Nb5 {[%clk 0:02:48.7]}
8... Ng6 {[%clk 0:02:56.6]} 9. a4 {[%clk 0:02:47]} 9... c6 {[%clk 0:02:56.1]}
10. Nc3 {[%clk 0:02:45]} 10... Bxd3 {[%clk 0:02:55.4]} 11. Qxd3 {[%clk
0:02:45.9]} 11... Na6 {[%clk 0:02:55.4]} 12. h4 {[%clk 0:02:43.5]} 12... Nb4
{[%clk 0:02:55.2]} 13. Qe2 {[%clk 0:02:43.6]} 13... h5 {[%clk 0:02:54.9]} 14.
O-O {[%clk 0:02:42]} 14... Ne7 {[%clk 0:02:54.7]} 15. Nd1 {[%clk 0:02:36.8]}
15... c5 {[%clk 0:02:53.4]} 16. c3 {[%clk 0:02:36.8]} 16... Nbc6 {[%clk
0:02:52.7]} 17. Be3 {[%clk 0:02:23.8]} 17... Nf5 {[%clk 0:02:51.6]} 18. Qb5
{[%clk 0:02:17]} 18... cxd4 {[%clk 0:02:42.1]} 19. Bxd4 {[%clk 0:02:04.4]} 19...
Ncxd4 {[%clk 0:02:40.1]} 20. Nxd4 {[%clk 0:01:55.7]} 20... Qxb5 {[%clk
0:02:39.7]} 21. Nxb5 {[%clk 0:01:55.6]} 21... Rc8 {[%clk 0:02:34]} 22. g3 {[%clk
0:01:55.5]} 22... Bc5 {[%clk 0:02:25.2]} 23. Kg2 {[%clk 0:01:55.4]} 23... Ke7
{[%clk 0:02:22.8]} 24. b3 {[%clk 0:01:40.9]} 24... Rhd8 {[%clk 0:02:21.3]} 25.
Nb2 {[%clk 0:01:40.3]} 25... d4 {[%clk 0:02:18.1]} 26. c4 {[%clk 0:01:39.9]}
26... d3 {[%clk 0:02:01.4]} 27. Nd1 {[%clk 0:01:36.7]} 27... d2 {[%clk
0:01:57.8]} 28. Ndc3 {[%clk 0:01:32.4]} 28... Nd4 {[%clk 0:01:53.6]} 29. Rab1
{[%clk 0:01:29.4]} 29... Nxb5 {[%clk 0:01:49.5]} 30. axb5 {[%clk 0:01:20.5]}
30... Rd3 {[%clk 0:01:47.6]} 31. Ne4 {[%clk 0:01:19.8]} 31... Bb4 {[%clk
0:01:46.3]} 32. Rfd1 {[%clk 0:01:17.4]} 32... Rcd8 {[%clk 0:01:46]} 33. Kf1
{[%clk 0:01:14.8]} 33... f5 {[%clk 0:01:45.8]} 34. exf6+ {[%clk 0:01:11.2]}
34... gxf6 {[%clk 0:01:45.9]} 35. Ke2 {[%clk 0:00:57]} 35... f5 {[%clk
0:01:45.7]} 36. Ng5 {[%clk 0:00:57.2]} 36... e5 {[%clk 0:01:41.4]} 37. Rb2
{[%clk 0:00:54.7]} 37... e4 {[%clk 0:01:37.8]} 38. Nh3 {[%clk 0:00:53.6]} 38...
Rf3 {[%clk 0:01:09.7]} 39. Ng1 {[%clk 0:00:53.3]} 39... Rfd3 {[%clk 0:01:07.2]}
40. Nh3 {[%clk 0:00:53.6]} 40... Rf3 {[%clk 0:01:04.9]} 41. Ng1 {[%clk
0:00:24.6]} 41... Rc3 {[%clk 0:00:53.9]} 42. Nh3 {[%clk 0:00:16.3]} 42... Rdd3
{[%clk 0:00:50.7]} 43. Nf4 {[%clk 0:00:13]} 43... Rxb3 {[%clk 0:00:45.5]} 44.
Rc2 {[%clk 0:00:12.6]} 44... Rf3 {[%clk 0:00:40.9]} 45. Nd5+ {[%clk 0:00:09.6]}
45... Ke6 {[%clk 0:00:37.3]} 46. Nxb4 {[%clk 0:00:10.2]} 46... axb4 {[%clk
0:00:31]} 47. Rcxd2 {[%clk 0:00:11.1]} 47... Rbc3 {[%clk 0:00:18.5]} 48. Rd6+
{[%clk 0:00:10.8]} 48... Ke7 {[%clk 0:00:18.7]} 49. Rd7+ {[%clk 0:00:11.4]}
49... Ke8 {[%clk 0:00:15.4]} 50. Rd8+ {[%clk 0:00:11.5]} 50... Ke7 {[%clk
0:00:15.4]} 51. R1d7+ {[%clk 0:00:11.9]} 51... Ke6 {[%clk 0:00:15.7]} 52. Rd6+
{[%clk 0:00:12.4]} 52... Ke7 {[%clk 0:00:16.2]} 53. R8d7+ {[%clk 0:00:12.6]}
53... Ke8 {[%clk 0:00:16.4]} 54. Rd8+ {[%clk 0:00:08.1]} 54... Ke7 {[%clk
0:00:16.5]} 55. R8d7+ {[%clk 0:00:08.8]} 55... Ke8 {[%clk 0:00:16.9]} 56. Rd8+
{[%clk 0:00:09.4]} 56... Ke7 {[%clk 0:00:17.3]} 1/2-1/2